Workbook

Sheet Opening Document
B2: UPON OPENING DOCUMENT…
B27: IF THE RED BANNER OCCURS….
B39: 1. DOWNLOAD DOCUMENT AND SAVE TO DESKTOP
B40: 2. RIGHT CLICK, PROPERTIES
B53: 3. CHECK OFF UNBLOCK, CLICK APPLY, CLICK OK
B54: 4. REOPEN EXCEL WORKBOOK
B55: 5. IF NEEDED, ENABLE EDITING, ENABLE CONTENT

Sheet Budget Summary
A2: Attachment A - Budget Worksheets
A19: Violence Against Women Act STOP Grant
A21: Cost Categories | B21: Federal Costs | C21: Match Costs | D21: Total Costs
A24: Personnel | B24: ='Budget Detail'!E18 -> 0 | C24: ='Budget Detail'!F18 -> 0 | D24: ='Budget Detail'!G18 -> 0
A26: Overtime | B26: ='Budget Detail'!E28 -> 0 | C26: ='Budget Detail'!F28 -> 0 | D26: ='Budget Detail'!G28 -> 0
A28: Fringe Benefits & Payroll Tax | B28: ='Budget Detail'!E38 -> 0 | C28: ='Budget Detail'!F38 -> 0 | D28: ='Budget Detail'!G38 -> 0
A30: Indirect | B30: ='Budget Detail'!E48 -> 0 | C30: ='Budget Detail'!F48 -> 0 | D30: ='Budget Detail'!G48 -> 0
A32: Consultants & Contracts | B32: ='Budget Detail'!E58 -> 0 | C32: ='Budget Detail'!F58 -> 0 | D32: ='Budget Detail'!G58 -> 0
A34: Travel | B34: ='Budget Detail'!E68 -> 0 | C34: ='Budget Detail'!F68 -> 0 | D34: ='Budget Detail'!G68 -> 0
A36: Equipment & Technology | B36: ='Budget Detail'!E78 -> 0 | C36: ='Budget Detail'!F78 -> 0 | D36: ='Budget Detail'!G78 -> 0
A38: Supplies | B38: ='Budget Detail'!E88 -> 0 | C38: ='Budget Detail'!F88 -> 0 | D38: ='Budget Detail'!G88 -> 0
A40: Other | B40: ='Budget Detail'!E98 -> 0 | C40: ='Budget Detail'!F98 -> 0 | D40: ='Budget Detail'!G98 -> 0
A42: Total Costs | B42: ='Budget Detail'!E100 -> 0 | C42: ='Budget Detail'!F100 -> 0 | D42: ='Budget Detail'!G100 -> 0
A44: Match Requirement | B44: =ROUND(B42/3,2) -> 0
A46: Name of Applicant Organization

Sheet Budget Detail
A1: Executive Office of Public Safety and Security
A2: Office of Grants and Research
A3: ='Budget Summary'!A19 -> Violence Against Women Act STOP Grant
A4: =CONCATENATE("Attachment A - ", 'Budget Summary'!B46) -> Attachment A -
A6: INSTRUCTIONS: This is a macro-enabled document. Please make sure that you have enabled macros when prompted upon opening this document. The items marked as Example are only examples, and do not necessarily reflect items in your requested budget. Please note that the subtotals will auto-populate based on the numbers reported within each category. Your requested budget per cost category shall be entered in the rows below the Examples using the "Add" command button to add another row if needed. If you have any questions, please contact your grant manager.
A7: Please take a moment to read the Availability of Grant Funds (AGF) prior to completing this budget. Each subrecipient will be expected to follow the guidance that is stated in this AGF. The AGF will highlight important aspects of this funding opportunity such as an grant overview, eligibility and application requirements, key dates, maximum funding request amounts, allowable costs, and unallowable costs.
A8: For each federal dollar awarded, the sub-recipient must provide a match toward the cost of the program. Federal grant funds provided may not exceed 75% of the total cost of your program. A match of at least 25% of the total cost of the program must be provided by your agency. The 25% matching funds may be in the form of cash or in-kind contributions. The Match amount must be entered into the Match Expenditures column (Column F) in order for the requested amount to be calculated from the Total Expenditures. To determine the Match Requirement, take (Total Requested Cash Expenditures / 3). The Match Requirement is also located at the bottom of the Budget Summary page.
A9: A 25% match requirement imposed on grant funds under this program are for Law Enforcement, Prosecution and Courts only; Victim Service providers and Tribes are NOT required to provide match.
A11: PERSONNEL: Full or part-time regular salaried employees working on the grant. Notification of changes to VAWA funded personnel (both award and/or match funded) must be made to the VAWA grant manager.
A13: Employee Name | B13: Pay Rate | C13: Quantity | D13: Description | E13: Cash Expenditures | F13: Match Expenditures | G13: Total Expenditures
A14: Example: Sue Smith | B14: 23.4875 | C14: 300 | D14: Please describe duties of Employee here. | E14: =IF(G14="","",G14-F14) -> 7046.25 | F14: 0 | G14: =IF(B14="","",ROUND(B14,4)*ROUND(C14,2)) -> 7046.25
E16: =IF(G16="","",G16-F16) ->  | G16: =IF(B16="","",ROUND(ROUND(B16,8)*ROUND(C16,8),2)) -> 
E17: =IF(G17="","",G17-F17) ->  | G17: =IF(B17="","",ROUND(ROUND(B17,8)*ROUND(C17,8),2)) -> 
A18: Subtotal(s): | E18: =SUM(OFFSET(Personnel,5,4):OFFSET(Overtime,-4,4)) -> 0 | F18: =SUM(OFFSET(Personnel,5,5):OFFSET(Overtime,-4,5)) -> 0 | G18: =SUM(OFFSET(Personnel,5,6):OFFSET(Overtime,-4,6)) -> 0
A21: OVERTIME: Allowable for all personnel working on the grant with adequate training and experience in responding to domestic and/or sexual violence incidents. Allowable costs are limited to costs associated with investigating cases; court appearances; attending trainings; and/or participating in high-risk/sexual assault teams are allowable.
A23: Employee Name | B23: Pay Rate | C23: Quantity | D23: Description | E23: Cash Expenditures | F23: Match Expenditures | G23: Total Expenditures
A24: Example: Sue Smith | B24: 40 | C24: 104 | D24: Please describe duties of Employee here. | E24: =IF(G24="","",G24-F24) -> 1660 | F24: 2500 | G24: =IF(B24="","",ROUND(B24,4)*ROUND(C24,2)) -> 4160
E26: =IF(G26="","",G26-F26) ->  | G26: =IF(B26="","",ROUND(ROUND(B26,8)*ROUND(C26,8),2)) -> 
E27: =IF(G27="","",G27-F27) ->  | G27: =IF(B27="","",ROUND(ROUND(B27,8)*ROUND(C27,8),2)) -> 
A28: Subtotal(s): | E28: =SUM(OFFSET(Overtime,5,4):OFFSET(Fringe,-4,4)) -> 0 | F28: =SUM(OFFSET(Overtime,5,5):OFFSET(Fringe,-4,5)) -> 0 | G28: =SUM(OFFSET(Overtime,5,6):OFFSET(Fringe,-4,6)) -> 0
A31: FRINGE BENEFITS & PAYROLL TAX: A COPY OF YOUR AGENCY'S FRINGE RATE AGREEMENT MUST BE PROVIDED WITH THE APPLICATION SUBMISSION. Eligible costs may include the employer share of the following: life insurance, health insurance, social security costs, pension costs, unemployment insurance costs, workers compensation insurance, FMLA costs, and payroll taxes.
A33: Employee Name | B33: Wages Applied to Fringe | C33: Contract Fringe Rate | D33: Description | E33: Cash Expenditures | F33: Match Expenditures | G33: Total Expenditures
A34: Example: Sue Smith | B34: 7046.25 | C34: 0.21 | D34: Per the fringe rate agreement, find the applicable cost categories to apply fringe to. In this example, the applicable cost category is "Personnel." Take Sue Smith's total wages reported on this worksheet under the "Personnel" section and multiply by the federally approved fringe rate or the fringe rate that was proposed and approved by OGR in the application process. ($7,046.25 * 21%). Match expenditures should be in relation to the match in the applicable category. | E34: =IF(G34="","",G34-F34) -> 1479.7125 | G34: =IF(B34="","",ROUND(B34,4)*ROUND(C34,4)) -> 1479.7125
E36: =IF(G36="","",G36-F36) ->  | G36: =IF(B36="","",ROUND(ROUND(B36,8)*ROUND(C36,8),2)) -> 
E37: =IF(G37="","",G37-F37) ->  | G37: =IF(B37="","",ROUND(ROUND(B37,8)*ROUND(C37,8),2)) -> 
A38: Subtotal(s): | E38: =SUM(OFFSET(Fringe,5,4):OFFSET(Indirect,-4,4)) -> 0 | F38: =SUM(OFFSET(Fringe,5,5):OFFSET(Indirect,-4,5)) -> 0 | G38: =SUM(OFFSET(Fringe,5,6):OFFSET(Indirect,-4,6)) -> 0
A41: INDIRECT: A COPY OF YOUR AGENCY'S INDIRECT RATE AGREEMENT MUST BE PROVIDED WITH THE APPLICATION SUBMISSION. This agreement will determine the applicable base expenses that can be applied in this Attachment A. This is for costs that are not readily assignable to a particular project, but necessary to the operation, maintenance of the organization, and performance of the project. Include copy of rate agreement in the application response. Any non-federal entity, except for state, local units of government, or Indian tribes, that does not have a currently approved negotiated indirect cost rate may elect to charge a de minimis rate of 15% of modified total direct costs (MTDC), which may be used indefinitely.
A43: Indirect Expenses | B43: Expenses Applied to Indirect | C43: Contract Indirect Rate | D43: Description | E43: Cash Expenditures | F43: Match Expenditures | G43: Total Expenditures
A44: Example: Sue Smith | B44: 8525.96 | C44: 0.18 | D44: The federally approved rate of "18%" times allowable expenses per contract. If allowable expenses are all categories, take the sum of all categories and multiply by the federally approved rate. If allowable expenses are only Personnel and Fringe like in this example, take the approved rate and multiply by the sum of Personnel and Fringe total costs associated with Sue Smith. (18% * (7046.25 + 1479.71)). | E44: =IF(G44="","",G44-F44) -> 1534.6728 | G44: =IF(B44="","",ROUND(B44,4)*ROUND(C44,4)) -> 1534.6728
E46: =IF(G46="","",G46-F46) ->  | G46: =IF(B46="","",ROUND(ROUND(B46,8)*ROUND(C46,8),2)) -> 
E47: =IF(G47="","",G47-F47) ->  | G47: =IF(B47="","",ROUND(ROUND(B47,8)*ROUND(C47,8),2)) -> 
A48: Subtotal(s): | E48: =SUM(OFFSET(Indirect,5,4):OFFSET(Contractors,-4,4)) -> 0 | F48: =SUM(OFFSET(Indirect,5,5):OFFSET(Contractors,-4,5)) -> 0 | G48: =SUM(OFFSET(Indirect,5,6):OFFSET(Contractors,-4,6)) -> 0
A51: CONSULTANTS & CONTRACTS: This includes consultant or contractor fees. The maximum rate for consultants is $650 for an eight hour day or $81.25 per hour (excluding travel and subsistence costs). Any request for compensation over $650 per 8 hour day or $81.25 per hour requires prior written approval by EOPSS. This rate is the exception, not the rule.
A53: Contractors/Consultants Name | B53: Pay Rate | C53: Quantity | D53: Description | E53: Cash Expenditures | F53: Match Expenditures | G53: Total Expenditures
A54: Example: JJ Counseling | B54: 200 | C54: 24 | D54: Please provide the names of each Contractor and Consultant as well as duties/obligations that will be performed here. | E54: =IF(G54="","",G54-F54) -> 2000 | F54: 2800 | G54: =IF(B54="","",ROUND(B54,4)*ROUND(C54,2)) -> 4800
E56: =IF(G56="","",G56-F56) ->  | G56: =IF(B56="","",ROUND(ROUND(B56,8)*ROUND(C56,8),2)) -> 
E57: =IF(G57="","",G57-F57) ->  | G57: =IF(B57="","",ROUND(ROUND(B57,8)*ROUND(C57,8),2)) -> 
A58: Subtotal(s): | E58: =SUM(OFFSET(Contractors,5,4):OFFSET(Travel,-4,4)) -> 0 | F58: =SUM(OFFSET(Contractors,5,5):OFFSET(Travel,-4,5)) -> 0 | G58: =SUM(OFFSET(Contractors,5,6):OFFSET(Travel,-4,6)) -> 0
A61: TRAVEL: Travel directly related to the purpose of the grant. In-state travel costs associated with the grant shall include mileage rates not in excess of $0.62 per mile, as well as the actual costs of tolls and parking. No grant funds may be spent for out-of-state conference fees, out- of-state travel or out-of-state lodging without prior written approval from OGR.
A63: Employee Name | B63: Rate | C63: Quantity | D63: Description | E63: Cash Expenditures | F63: Match Expenditures | G63: Total Expenditures
A64: Example: Sue Smith | B64: 0.62 | C64: 125 | D64: Travel related to grant; $0.62/mile x 125 miles | E64: =IF(G64="","",G64-F64) -> 77.5 | F64: 0 | G64: =IF(B64="","",ROUND(B64,4)*ROUND(C64,2)) -> 77.5
E66: =IF(G66="","",G66-F66) ->  | G66: =IF(B66="","",ROUND(ROUND(B66,8)*ROUND(C66,8),2)) -> 
E67: =IF(G67="","",G67-F67) ->  | G67: =IF(B67="","",ROUND(ROUND(B67,8)*ROUND(C67,8),2)) -> 
A68: Subtotal(s): | E68: =SUM(OFFSET(Travel,5,4):OFFSET(Equipment,-4,4)) -> 0 | F68: =SUM(OFFSET(Travel,5,5):OFFSET(Equipment,-4,5)) -> 0 | G68: =SUM(OFFSET(Travel,5,6):OFFSET(Equipment,-4,6)) -> 0
A71: EQUIPMENT & TECHNOLOGY: Tangible non-expendable personal property having a useful life of more than one year; cost based on classification of equipment. Applicants should follow their organization's own procurement policy.
A73: Equipment | B73: Cost | C73: Quantity | D73: Description | E73: Cash Expenditures | F73: Match Expenditures | G73: Total Expenditures
A74: Example: Laptop | B74: 1200 | C74: 1 | D74: Please describe purpose of Equipment here. | E74: =IF(G74="","",G74-F74) -> 1075 | F74: 125 | G74: =IF(B74="","",ROUND(B74,4)*ROUND(C74,2)) -> 1200
E76: =IF(G76="","",G76-F76) ->  | G76: =IF(B76="","",ROUND(ROUND(B76,8)*ROUND(C76,8),2)) -> 
E77: =IF(G77="","",G77-F77) ->  | G77: =IF(B77="","",ROUND(ROUND(B77,8)*ROUND(C77,8),2)) -> 
A78: Subtotal(s): | E78: =SUM(OFFSET(Equipment,5,4):OFFSET(Supplies,-4,4)) -> 0 | F78: =SUM(OFFSET(Equipment,5,5):OFFSET(Supplies,-4,5)) -> 0 | G78: =SUM(OFFSET(Equipment,5,6):OFFSET(Supplies,-4,6)) -> 0
A81: SUPPLIES: General supplies required for program (pens, pencils, postage, training materials, copying paper, and other expendable items such as books, ink, etc.).
A83: Supplies/Company | B83: Cost | C83: Quantity | D83: Description | E83: Cash Expenditures | F83: Match Expenditures | G83: Total Expenditures
A84: Example: Copy Paper | B84: 50 | C84: 4 | D84: Please describe purpose of Supplies here. | E84: =IF(G84="","",G84-F84) -> 100 | F84: 100 | G84: =IF(B84="","",ROUND(B84,4)*ROUND(C84,2)) -> 200
E86: =IF(G86="","",G86-F86) ->  | G86: =IF(B86="","",ROUND(ROUND(B86,8)*ROUND(C86,8),2)) -> 
E87: =IF(G87="","",G87-F87) ->  | G87: =IF(B87="","",ROUND(ROUND(B87,8)*ROUND(C87,8),2)) -> 
A88: Subtotal(s): | E88: =SUM(OFFSET(Supplies,5,4):OFFSET(Other,-4,4)) -> 0 | F88: =SUM(OFFSET(Supplies,5,5):OFFSET(Other,-4,5)) -> 0 | G88: =SUM(OFFSET(Supplies,5,6):OFFSET(Other,-4,6)) -> 0
A91: OTHER: List the purchases for other expenses not applicable in the aforementioned that were incurred due to this program implementation (e.g., telephone costs, training material costs).
A93: Item/Company | B93: Cost | C93: Quantity | D93: Description | E93: Cash Expenditures | F93: Match Expenditures | G93: Total Expenditures
A94: Example: Telephone | B94: 65 | C94: 6 | D94: Please describe purpose of item/activitiy here. | E94: =IF(G94="","",G94-F94) -> 390 | F94: 0 | G94: =IF(B94="","",ROUND(B94,4)*ROUND(C94,2)) -> 390
E96: =IF(G96="","",G96-F96) ->  | G96: =IF(B96="","",ROUND(ROUND(B96,8)*ROUND(C96,8),2)) -> 
E97: =IF(G97="","",G97-F97) ->  | G97: =IF(B97="","",ROUND(ROUND(B97,8)*ROUND(C97,8),2)) -> 
A98: Subtotal(s): | E98: =SUM(OFFSET(Other,5,4):OFFSET(GrandTotal,-3,4)) -> 0 | F98: =SUM(OFFSET(Other,5,5):OFFSET(GrandTotal,-3,5)) -> 0 | G98: =SUM(OFFSET(Other,5,6):OFFSET(GrandTotal,-3,6)) -> 0
A100: Grand Total(s): | E100: =ROUND(SUM(E18+E28+E38+E48+E58+E68+E78+E88+E98),2) -> 0 | F100: =ROUND(SUM(F18+F28+F38+F48+F58+F68+F78+F88+F98),2) -> 0 | G100: =ROUND(SUM(G18+G28+G38+G48+G58+G68+G78+G88+G98),2) -> 0
